[Event "December 5 Early 2023"]
[Site "https://www.chess.com"]
[Date "2023.12.05"]
[Round "6"]
[White "Yurasova, Daria"]
[Black "Kokoszczynski, Jan"]
[Result "0-1"]
[Board "80"]
[TimeControl "180+1"]
[WhiteFideId "34146919"]
[BlackFideId "1174460"]
[WhiteElo "2466"]
[BlackElo "2657"]
[WhiteTeam "RUS"]
[BlackTeam "POL"]
[WhiteClock "0:00:00"]
[BlackClock "0:00:33"]

1. d4 {[%clk 0:03:00]}  Nf6 {[%clk 0:02:59]} 2. Bg5 {[%clk 0:03:00]}  g6 {[%clk 0:02:58]} 3. Bxf6 {[%clk 0:03:00]}  exf6 {[%clk 0:02:58]} 4. e3 {[%clk 0:03:01]}  Bg7 {[%clk 0:02:58]} 5. g3 {[%clk 0:03:02]}  O-O {[%clk 0:02:58]} 6. Bg2 {[%clk 0:03:03]}  d5 {[%clk 0:02:56]} 7. Ne2 {[%clk 0:03:03]}  c6 {[%clk 0:02:55]} 8. Nd2 {[%clk 0:03:03]}  h5 {[%clk 0:02:55]} 9. O-O {[%clk 0:03:04]}  h4 {[%clk 0:02:52]} 10. c4 {[%clk 0:03:04]}  dxc4 {[%clk 0:02:44]} 11. Nxc4 {[%clk 0:03:05]}  Be6 {[%clk 0:02:44]} 12. Qc2 {[%clk 0:03:03]}  hxg3 {[%clk 0:02:19]} 13. hxg3 {[%clk 0:03:03]}  Bd5 {[%clk 0:02:16]} 14. Bxd5 {[%clk 0:03:01]}  Qxd5 {[%clk 0:02:15]} 15. Nf4 {[%clk 0:03:01]}  Qg5 {[%clk 0:02:06]} 16. Nd6 {[%clk 0:02:53]}  b6 {[%clk 0:01:58]} 17. Ne4 {[%clk 0:02:40]}  Qf5 {[%clk 0:01:52]} 18. Rac1 {[%clk 0:02:39]}  Rd8 {[%clk 0:01:41]} 19. Kg2 {[%clk 0:02:38]}  Na6 {[%clk 0:01:21]} 20. a3 {[%clk 0:01:54]}  Rac8 {[%clk 0:01:21]} 21. b4 {[%clk 0:01:48]}  c5 {[%clk 0:01:06]} 22. bxc5 {[%clk 0:01:45]}  bxc5 {[%clk 0:01:06]} 23. Nxc5 {[%clk 0:01:44]}  Qxc2 {[%clk 0:00:59]} 24. Rxc2 {[%clk 0:01:43]}  Bf8 {[%clk 0:01:00]} 25. Rfc1 {[%clk 0:01:41]}  Nxc5 {[%clk 0:00:56]} 26. dxc5 {[%clk 0:01:38]}  Rc6 {[%clk 0:00:56]} 27. Kf3 {[%clk 0:01:14]}  g5 {[%clk 0:00:56]} 28. Ne2 {[%clk 0:00:50]}  Rd5 {[%clk 0:00:56]} 29. Nd4 {[%clk 0:00:48]}  Rcxc5 {[%clk 0:00:55]} 30. Rxc5 {[%clk 0:00:49]}  Bxc5 {[%clk 0:00:56]} 31. Ke4 {[%clk 0:00:49]}  Re5+ {[%clk 0:00:56]} 32. Kd3 {[%clk 0:00:49]}  Bxd4 {[%clk 0:00:44]} 33. exd4 {[%clk 0:00:48]}  Rf5 {[%clk 0:00:44]} 34. Ke3 {[%clk 0:00:41]}  g4 {[%clk 0:00:44]} 35. Rc8+ {[%clk 0:00:19]}  Kg7 {[%clk 0:00:44]} 36. a4 {[%clk 0:00:20]}  Rf3+ {[%clk 0:00:41]} 37. Ke2 {[%clk 0:00:21]}  Ra3 {[%clk 0:00:41]} 38. d5 {[%clk 0:00:21]}  Rxa4 {[%clk 0:00:40]} 39. d6 {[%clk 0:00:18]}  Rd4 {[%clk 0:00:40]} 40. Rd8 {[%clk 0:00:17]}  f5 {[%clk 0:00:37]} 41. d7 {[%clk 0:00:16]}  Kf6 {[%clk 0:00:35]} 42. Ke3 {[%clk 0:00:13]}  Rd5 {[%clk 0:00:33]} 43. Kf4 {[%clk 0:00:00]}  Rd3 {[%clk 0:00:33]} 0-1

[Event "December 5 Early 2023"]
[Site "https://www.chess.com"]
[Date "2023.12.05"]
[Round "6"]
[White "Liu, Casper"]
[Black "Antunez Soler, Luis"]
[Result "0-1"]
[Board "81"]
[TimeControl "180+1"]
[WhiteFideId "1454153"]
[BlackFideId "3513335"]
[WhiteElo "2454"]
[BlackElo "2655"]
[WhiteTeam "DEN"]
[BlackTeam "CUB"]
[WhiteClock "0:00:17"]
[BlackClock "0:00:17"]

1. d4 {[%clk 0:02:56]}  d5 {[%clk 0:02:59]} 2. Bf4 {[%clk 0:02:57]}  Nf6 {[%clk 0:02:58]} 3. e3 {[%clk 0:02:58]}  c5 {[%clk 0:02:59]} 4. Nf3 {[%clk 0:02:57]}  Nc6 {[%clk 0:03:00]} 5. Be2 {[%clk 0:02:56]}  cxd4 {[%clk 0:02:59]} 6. exd4 {[%clk 0:02:57]}  Qb6 {[%clk 0:02:59]} 7. Nc3 {[%clk 0:02:57]}  a6 {[%clk 0:02:59]} 8. a3 {[%clk 0:02:57]}  Bg4 {[%clk 0:02:59]} 9. Na4 {[%clk 0:02:52]}  Qd8 {[%clk 0:02:50]} 10. O-O {[%clk 0:02:49]}  e6 {[%clk 0:02:49]} 11. h3 {[%clk 0:02:45]}  Bh5 {[%clk 0:02:48]} 12. b4 {[%clk 0:02:39]}  Ne4 {[%clk 0:02:42]} 13. Qd3 {[%clk 0:02:23]}  Bg6 {[%clk 0:02:16]} 14. Qe3 {[%clk 0:02:20]}  Bd6 {[%clk 0:01:42]} 15. c4 {[%clk 0:02:16]}  dxc4 {[%clk 0:01:27]} 16. Bxc4 {[%clk 0:02:16]}  O-O {[%clk 0:00:56]} 17. d5 {[%clk 0:02:14]}  exd5 {[%clk 0:00:55]} 18. Bxd6 {[%clk 0:02:05]}  Qxd6 {[%clk 0:00:53]} 19. Rad1 {[%clk 0:02:03]}  Ne7 {[%clk 0:00:47]} 20. Nb6 {[%clk 0:01:52]}  Rad8 {[%clk 0:00:41]} 21. Nxd5 {[%clk 0:01:51]}  Nxd5 {[%clk 0:00:41]} 22. Bxd5 {[%clk 0:01:51]}  Qe7 {[%clk 0:00:42]} 23. Rfe1 {[%clk 0:01:46]}  Rfe8 {[%clk 0:00:28]} 24. Qb6 {[%clk 0:01:20]}  Kh8 {[%clk 0:00:19]} 25. Qxb7 {[%clk 0:01:09]}  Rd7 {[%clk 0:00:11]} 26. Qxa6 {[%clk 0:01:04]}  Red8 {[%clk 0:00:11]} 27. Bb3 {[%clk 0:00:59]}  f5 {[%clk 0:00:09]} 28. Rxd7 {[%clk 0:00:54]}  Qxd7 {[%clk 0:00:10]} 29. Ne5 {[%clk 0:00:54]}  Qd4 {[%clk 0:00:09]} 30. Nxg6+ {[%clk 0:00:24]}  hxg6 {[%clk 0:00:10]} 31. Qe2 {[%clk 0:00:13]}  Qc3 {[%clk 0:00:09]} 32. Qc2 {[%clk 0:00:11]}  Qxe1+ {[%clk 0:00:08]} 33. Kh2 {[%clk 0:00:11]}  Qxf2 {[%clk 0:00:09]} 34. Qc7 {[%clk 0:00:11]}  Qd4 {[%clk 0:00:07]} 35. Qf7 {[%clk 0:00:10]}  Qd6+ {[%clk 0:00:06]} 36. Kg1 {[%clk 0:00:10]}  Qf6 {[%clk 0:00:05]} 37. Qc4 {[%clk 0:00:09]}  Qd4+ {[%clk 0:00:04]} 38. Kh2 {[%clk 0:00:09]}  Qxc4 {[%clk 0:00:04]} 39. Bxc4 {[%clk 0:00:09]}  Nd2 {[%clk 0:00:05]} 40. Be2 {[%clk 0:00:09]}  Ra8 {[%clk 0:00:05]} 41. b5 {[%clk 0:00:08]}  Rxa3 {[%clk 0:00:06]} 42. b6 {[%clk 0:00:09]}  Rb3 {[%clk 0:00:07]} 43. h4 {[%clk 0:00:08]}  Rxb6 {[%clk 0:00:07]} 44. h5 {[%clk 0:00:09]}  Kh7 {[%clk 0:00:08]} 45. h6 {[%clk 0:00:10]}  gxh6 {[%clk 0:00:08]} 46. g4 {[%clk 0:00:11]}  g5 {[%clk 0:00:09]} 47. Bd3 {[%clk 0:00:10]}  Kg7 {[%clk 0:00:10]} 48. Bxf5 {[%clk 0:00:11]}  Kf6 {[%clk 0:00:10]} 49. Kg2 {[%clk 0:00:12]}  Nc4 {[%clk 0:00:10]} 50. Kf2 {[%clk 0:00:13]}  Nd6 {[%clk 0:00:11]} 51. Ke2 {[%clk 0:00:14]}  Nxf5 {[%clk 0:00:11]} 52. gxf5 {[%clk 0:00:15]}  Kxf5 {[%clk 0:00:12]} 53. Kd3 {[%clk 0:00:16]}  h5 {[%clk 0:00:13]} 54. Kd4 {[%clk 0:00:17]}  Re6 {[%clk 0:00:13]} 55. Kc5 {[%clk 0:00:17]}  g4 {[%clk 0:00:14]} 56. Kd4 {[%clk 0:00:18]}  g3 {[%clk 0:00:15]} 57. Kd5 {[%clk 0:00:19]}  g2 {[%clk 0:00:16]} 58. Kd4 {[%clk 0:00:20]}  g1=Q+ {[%clk 0:00:16]} 59. Kd5 {[%clk 0:00:17]}  Qd1+ {[%clk 0:00:17]} 0-1

[Event "December 5 Early 2023"]
[Site "https://www.chess.com"]
[Date "2023.12.05"]
[Round "6"]
[White "Filipovic, Slobodan J"]
[Black "Cieslak, Patryk"]
[Result "1-0"]
[Board "82"]
[TimeControl "180+1"]
[WhiteFideId "939633"]
[BlackFideId "21078882"]
[WhiteElo "2452"]
[BlackElo "2653"]
[WhiteTeam "SRB"]
[BlackTeam "POL"]
[WhiteClock "0:00:08"]
[BlackClock "0:00:00"]

1. c4 {[%clk 0:03:00]}  e6 {[%clk 0:02:54]} 2. Nf3 {[%clk 0:02:55]}  d5 {[%clk 0:02:51]} 3. b3 {[%clk 0:02:54]}  Nf6 {[%clk 0:02:50]} 4. Bb2 {[%clk 0:02:53]}  Bd6 {[%clk 0:02:50]} 5. g3 {[%clk 0:02:48]}  O-O {[%clk 0:02:51]} 6. Bg2 {[%clk 0:02:48]}  b6 {[%clk 0:02:50]} 7. O-O {[%clk 0:02:47]}  Bb7 {[%clk 0:02:51]} 8. d4 {[%clk 0:02:43]}  Nbd7 {[%clk 0:02:51]} 9. Nc3 {[%clk 0:02:42]}  a6 {[%clk 0:02:52]} 10. cxd5 {[%clk 0:02:41]}  exd5 {[%clk 0:02:52]} 11. Nh4 {[%clk 0:02:40]}  g6 {[%clk 0:02:50]} 12. Rc1 {[%clk 0:02:34]}  Re8 {[%clk 0:02:50]} 13. Qc2 {[%clk 0:02:32]}  Ne4 {[%clk 0:02:47]} 14. Nf3 {[%clk 0:02:15]}  Nxc3 {[%clk 0:02:43]} 15. Bxc3 {[%clk 0:02:15]}  Qe7 {[%clk 0:02:43]} 16. e3 {[%clk 0:02:14]}  Rac8 {[%clk 0:02:42]} 17. Qb2 {[%clk 0:02:09]}  Kg7 {[%clk 0:02:38]} 18. Qa1 {[%clk 0:02:07]}  f6 {[%clk 0:02:36]} 19. Bb2 {[%clk 0:02:03]}  Nf8 {[%clk 0:02:35]} 20. Rc2 {[%clk 0:02:02]}  Ne6 {[%clk 0:02:30]} 21. Rfc1 {[%clk 0:02:02]}  Ng5 {[%clk 0:02:13]} 22. Nxg5 {[%clk 0:01:59]}  fxg5 {[%clk 0:02:14]} 23. Rc6 {[%clk 0:01:33]}  Bxc6 {[%clk 0:01:36]} 24. Rxc6 {[%clk 0:01:33]}  Qf7 {[%clk 0:01:36]} 25. a3 {[%clk 0:01:12]}  Rf8 {[%clk 0:01:33]} 26. Qe1 {[%clk 0:01:05]}  Kg8 {[%clk 0:01:28]} 27. b4 {[%clk 0:01:03]}  g4 {[%clk 0:01:21]} 28. Qe2 {[%clk 0:00:48]}  Qf5 {[%clk 0:01:19]} 29. e4 {[%clk 0:00:39]}  dxe4 {[%clk 0:01:15]} 30. Bxe4 {[%clk 0:00:39]}  Rce8 {[%clk 0:01:12]} 31. Qc4+ {[%clk 0:00:29]}  Qf7 {[%clk 0:00:35]} 32. Bd5 {[%clk 0:00:29]}  Re1+ {[%clk 0:00:33]} 33. Kg2 {[%clk 0:00:28]}  Qxd5+ {[%clk 0:00:12]} 34. Qxd5+ {[%clk 0:00:28]}  Rf7 {[%clk 0:00:13]} 35. Rc2 {[%clk 0:00:21]}  h5 {[%clk 0:00:12]} 36. h3 {[%clk 0:00:20]}  gxh3+ {[%clk 0:00:12]} 37. Kxh3 {[%clk 0:00:21]}  Re7 {[%clk 0:00:11]} 38. Kg2 {[%clk 0:00:21]}  Kh7 {[%clk 0:00:09]} 39. Bc1 {[%clk 0:00:20]}  Rf5 {[%clk 0:00:08]} 40. Qc6 {[%clk 0:00:18]}  h4 {[%clk 0:00:08]} 41. gxh4 {[%clk 0:00:18]}  Ref7 {[%clk 0:00:06]} 42. Bg5 {[%clk 0:00:18]}  Bf4 {[%clk 0:00:05]} 43. Qe4 {[%clk 0:00:13]}  Bxg5 {[%clk 0:00:05]} 44. hxg5 {[%clk 0:00:14]}  Rxg5+ {[%clk 0:00:06]} 45. Kf1 {[%clk 0:00:14]}  Rh5 {[%clk 0:00:04]} 46. Rc6 {[%clk 0:00:12]}  Rhf5 {[%clk 0:00:04]} 47. Ke1 {[%clk 0:00:10]}  Kg7 {[%clk 0:00:03]} 48. Re6 {[%clk 0:00:10]}  Kf8 {[%clk 0:00:02]} 49. Re8+ {[%clk 0:00:09]}  Kg7 {[%clk 0:00:03]} 50. Qh4 {[%clk 0:00:09]}  g5 {[%clk 0:00:01]} 51. Qh8+ {[%clk 0:00:09]}  Kg6 {[%clk 0:00:02]} 52. Rg8+ {[%clk 0:00:09]}  Rg7 {[%clk 0:00:02]} 53. Qxg7+ {[%clk 0:00:10]}  Kh5 {[%clk 0:00:01]} 54. Rh8+ {[%clk 0:00:10]}  Kg4 {[%clk 0:00:02]} 55. Qd7 {[%clk 0:00:10]}  Kf4 {[%clk 0:00:02]} 56. Rh3 {[%clk 0:00:09]}  g4 {[%clk 0:00:01]} 57. Re3 {[%clk 0:00:09]}  Rh5 {[%clk 0:00:00]} 58. Ke2 {[%clk 0:00:08]} 1-0

[Event "December 5 Early 2023"]
[Site "https://www.chess.com"]
[Date "2023.12.05"]
[Round "6"]
[White "Kuderinov, Kirill"]
[Black "Todorovic, Bojan"]
[Result "1-0"]
[Board "84"]
[TimeControl "180+1"]
[WhiteFideId "13701568"]
[BlackFideId "917087"]
[WhiteElo "2649"]
[BlackElo "2440"]
[WhiteTeam "KAZ"]
[BlackTeam "SRB"]
[WhiteClock "0:00:58"]
[BlackClock "0:00:08"]

1. e4 {[%clk 0:03:00]}  g6 {[%clk 0:02:59]} 2. d4 {[%clk 0:03:00]}  Bg7 {[%clk 0:02:58]} 3. Nc3 {[%clk 0:03:00]}  d6 {[%clk 0:02:58]} 4. Nf3 {[%clk 0:02:59]}  a6 {[%clk 0:02:57]} 5. a4 {[%clk 0:02:58]}  Nc6 {[%clk 0:02:55]} 6. d5 {[%clk 0:02:57]}  Ne5 {[%clk 0:02:54]} 7. Nxe5 {[%clk 0:02:53]}  Bxe5 {[%clk 0:02:54]} 8. Bd3 {[%clk 0:02:53]}  Nf6 {[%clk 0:02:40]} 9. O-O {[%clk 0:02:49]}  O-O {[%clk 0:02:38]} 10. f4 {[%clk 0:02:44]}  Bd4+ {[%clk 0:02:37]} 11. Kh1 {[%clk 0:02:44]}  Nd7 {[%clk 0:01:56]} 12. f5 {[%clk 0:02:39]}  Bxc3 {[%clk 0:01:52]} 13. bxc3 {[%clk 0:02:38]}  Ne5 {[%clk 0:01:52]} 14. Bh6 {[%clk 0:02:38]}  Re8 {[%clk 0:01:48]} 15. Bf4 {[%clk 0:02:27]}  e6 {[%clk 0:01:41]} 16. Bxe5 {[%clk 0:02:21]}  dxe5 {[%clk 0:01:41]} 17. f6 {[%clk 0:02:21]}  exd5 {[%clk 0:01:39]} 18. Qd2 {[%clk 0:02:20]}  Re6 {[%clk 0:01:37]} 19. exd5 {[%clk 0:02:18]}  Rxf6 {[%clk 0:01:35]} 20. c4 {[%clk 0:02:10]}  b6 {[%clk 0:01:27]} 21. a5 {[%clk 0:02:07]}  Bb7 {[%clk 0:01:19]} 22. axb6 {[%clk 0:02:05]}  cxb6 {[%clk 0:01:18]} 23. Qe3 {[%clk 0:02:01]}  Rxf1+ {[%clk 0:01:05]} 24. Rxf1 {[%clk 0:02:00]}  Qd6 {[%clk 0:01:05]} 25. h3 {[%clk 0:01:52]}  a5 {[%clk 0:01:01]} 26. Rb1 {[%clk 0:01:51]}  a4 {[%clk 0:00:42]} 27. Rxb6 {[%clk 0:01:49]}  Qc7 {[%clk 0:00:42]} 28. d6 {[%clk 0:01:28]}  Qd7 {[%clk 0:00:33]} 29. Be4 {[%clk 0:01:12]}  Bxe4 {[%clk 0:00:29]} 30. Qxe4 {[%clk 0:01:13]}  Ra7 {[%clk 0:00:24]} 31. Qxe5 {[%clk 0:01:09]}  Ra8 {[%clk 0:00:19]} 32. c5 {[%clk 0:01:00]}  a3 {[%clk 0:00:17]} 33. c6 {[%clk 0:01:00]}  Qd8 {[%clk 0:00:11]} 34. c7 {[%clk 0:00:59]}  Qd7 {[%clk 0:00:08]} 35. Rb8+ {[%clk 0:00:58]} 1-0

[Event "December 5 Early 2023"]
[Site "https://www.chess.com"]
[Date "2023.12.05"]
[Round "6"]
[White "Gontcharov, Vladislav"]
[Black "Goldin, Roman"]
[Result "1/2-1/2"]
[Board "85"]
[TimeControl "180+1"]
[WhiteFideId "4123492"]
[BlackFideId "2803860"]
[WhiteElo "2643"]
[BlackElo "2437"]
[WhiteTeam "RUS"]
[BlackTeam "ISR"]
[WhiteClock "0:01:02"]
[BlackClock "0:00:09"]

1. d4 {[%clk 0:03:00]}  Nf6 {[%clk 0:02:59]} 2. c4 {[%clk 0:03:00]}  Nc6 {[%clk 0:02:58]} 3. Nf3 {[%clk 0:02:59]}  e6 {[%clk 0:02:58]} 4. a3 {[%clk 0:02:55]}  d6 {[%clk 0:02:55]} 5. Nc3 {[%clk 0:02:54]}  g6 {[%clk 0:02:54]} 6. g3 {[%clk 0:02:50]}  Bg7 {[%clk 0:02:54]} 7. Bg2 {[%clk 0:02:51]}  O-O {[%clk 0:02:55]} 8. O-O {[%clk 0:02:41]}  Qe7 {[%clk 0:02:55]} 9. b4 {[%clk 0:02:41]}  e5 {[%clk 0:02:53]} 10. e3 {[%clk 0:02:41]}  Bg4 {[%clk 0:02:41]} 11. h3 {[%clk 0:02:41]}  Bd7 {[%clk 0:02:09]} 12. Bb2 {[%clk 0:02:38]}  h5 {[%clk 0:01:42]} 13. Rc1 {[%clk 0:02:36]}  exd4 {[%clk 0:01:40]} 14. exd4 {[%clk 0:02:35]}  Rae8 {[%clk 0:01:33]} 15. Qd2 {[%clk 0:02:18]}  Bf5 {[%clk 0:00:48]} 16. Rfe1 {[%clk 0:02:16]}  Qd7 {[%clk 0:00:45]} 17. Kh2 {[%clk 0:02:15]}  Ne4 {[%clk 0:00:42]} 18. Nxe4 {[%clk 0:02:04]}  Bxe4 {[%clk 0:00:42]} 19. d5 {[%clk 0:02:01]}  Bxf3 {[%clk 0:00:36]} 20. Bxg7 {[%clk 0:02:00]}  Kxg7 {[%clk 0:00:29]} 21. Bxf3 {[%clk 0:01:55]}  Ne5 {[%clk 0:00:25]} 22. Bg2 {[%clk 0:01:55]}  Qf5 {[%clk 0:00:23]} 23. Re3 {[%clk 0:01:50]}  Nd7 {[%clk 0:00:19]} 24. Rce1 {[%clk 0:01:49]}  Re5 {[%clk 0:00:18]} 25. f4 {[%clk 0:01:48]}  Rxe3 {[%clk 0:00:18]} 26. Qxe3 {[%clk 0:01:47]}  Qf6 {[%clk 0:00:19]} 27. Qe7 {[%clk 0:01:45]}  Qxe7 {[%clk 0:00:17]} 28. Rxe7 {[%clk 0:01:44]}  Rd8 {[%clk 0:00:18]} 29. g4 {[%clk 0:01:38]}  hxg4 {[%clk 0:00:17]} 30. hxg4 {[%clk 0:01:37]}  Kf8 {[%clk 0:00:16]} 31. Re1 {[%clk 0:01:37]}  Re8 {[%clk 0:00:13]} 32. Rxe8+ {[%clk 0:01:36]}  Kxe8 {[%clk 0:00:13]} 33. g5 {[%clk 0:01:37]}  Ke7 {[%clk 0:00:13]} 34. Kg3 {[%clk 0:01:36]}  Nb6 {[%clk 0:00:13]} 35. Bf1 {[%clk 0:01:36]}  Na4 {[%clk 0:00:12]} 36. Kf3 {[%clk 0:01:31]}  Nc3 {[%clk 0:00:10]} 37. Bd3 {[%clk 0:01:31]}  b6 {[%clk 0:00:08]} 38. Ke3 {[%clk 0:01:30]}  a5 {[%clk 0:00:07]} 39. Kd4 {[%clk 0:01:27]}  axb4 {[%clk 0:00:05]} 40. axb4 {[%clk 0:01:26]}  Na2 {[%clk 0:00:05]} 41. b5 {[%clk 0:01:26]}  Kd7 {[%clk 0:00:05]} 42. Bb1 {[%clk 0:01:24]}  Nc1 {[%clk 0:00:05]} 43. Bc2 {[%clk 0:01:09]}  Ne2+ {[%clk 0:00:05]} 44. Ke3 {[%clk 0:01:07]}  Ng3 {[%clk 0:00:05]} 45. Kf3 {[%clk 0:01:04]}  Nf5 {[%clk 0:00:05]} 46. Bxf5+ {[%clk 0:01:03]}  gxf5 {[%clk 0:00:05]} 47. Kg3 {[%clk 0:01:04]}  Ke7 {[%clk 0:00:05]} 48. Kh4 {[%clk 0:01:04]}  Kf8 {[%clk 0:00:06]} 49. Kh5 {[%clk 0:01:03]}  Kg7 {[%clk 0:00:06]} 50. Kh4 {[%clk 0:01:03]}  Kg6 {[%clk 0:00:06]} 51. Kg3 {[%clk 0:01:02]}  Kh5 {[%clk 0:00:07]} 52. Kh3 {[%clk 0:01:03]}  Kg6 {[%clk 0:00:07]} 53. Kh4 {[%clk 0:01:03]}  Kg7 {[%clk 0:00:07]} 54. Kh5 {[%clk 0:01:03]}  Kh7 {[%clk 0:00:07]} 55. Kh4 {[%clk 0:01:02]}  Kg6 {[%clk 0:00:08]} 56. Kg3 {[%clk 0:01:02]}  Kh5 {[%clk 0:00:08]} 57. Kh3 {[%clk 0:01:02]}  Kg6 {[%clk 0:00:08]} 58. Kh4 {[%clk 0:01:02]}  Kg7 {[%clk 0:00:08]} 59. Kh5 {[%clk 0:01:02]}  Kh7 {[%clk 0:00:08]} 60. Kh4 {[%clk 0:01:02]}  Kg6 {[%clk 0:00:09]} 1/2-1/2

[Event "December 5 Early 2023"]
[Site "https://www.chess.com"]
[Date "2023.12.05"]
[Round "6"]
[White "Sai Han Thiha"]
[Black "Taichman, Ori"]
[Result "0-1"]
[Board "86"]
[TimeControl "180+1"]
[WhiteFideId "13012290"]
[BlackFideId "2804069"]
[WhiteElo "2428"]
[BlackElo "2640"]
[WhiteTeam "MYA"]
[BlackTeam "ISR"]
[WhiteClock "0:00:04"]
[BlackClock "0:00:23"]

1. Nf3 {[%clk 0:03:00]}  Nf6 {[%clk 0:02:57]} 2. g3 {[%clk 0:03:01]}  g6 {[%clk 0:02:58]} 3. b3 {[%clk 0:03:01]}  Bg7 {[%clk 0:02:57]} 4. Bb2 {[%clk 0:03:02]}  O-O {[%clk 0:02:58]} 5. Bg2 {[%clk 0:03:03]}  c5 {[%clk 0:02:51]} 6. O-O {[%clk 0:03:02]}  Nc6 {[%clk 0:02:49]} 7. c4 {[%clk 0:03:02]}  d6 {[%clk 0:02:47]} 8. d4 {[%clk 0:02:54]}  d5 {[%clk 0:02:47]} 9. dxc5 {[%clk 0:01:52]}  dxc4 {[%clk 0:02:47]} 10. Nbd2 {[%clk 0:01:51]}  Nd7 {[%clk 0:02:06]} 11. Bxg7 {[%clk 0:01:45]}  Kxg7 {[%clk 0:02:07]} 12. Ne4 {[%clk 0:01:00]}  f5 {[%clk 0:02:00]} 13. Nfg5 {[%clk 0:00:59]}  Nde5 {[%clk 0:01:51]} 14. Nc3 {[%clk 0:00:52]}  Qa5 {[%clk 0:01:45]} 15. Nd5 {[%clk 0:00:48]}  h6 {[%clk 0:01:39]} 16. b4 {[%clk 0:00:42]}  Nxb4 {[%clk 0:01:38]} 17. Nxb4 {[%clk 0:00:42]}  Qxc5 {[%clk 0:01:28]} 18. Nf3 {[%clk 0:00:24]}  Nxf3+ {[%clk 0:01:25]} 19. exf3 {[%clk 0:00:25]}  Qxb4 {[%clk 0:01:26]} 20. Qd4+ {[%clk 0:00:25]}  Rf6 {[%clk 0:01:13]} 21. Rfe1 {[%clk 0:00:24]}  Qd6 {[%clk 0:01:07]} 22. Qxc4 {[%clk 0:00:20]}  Be6 {[%clk 0:01:02]} 23. Qb5 {[%clk 0:00:21]}  Qb6 {[%clk 0:00:56]} 24. Qe5 {[%clk 0:00:17]}  f4 {[%clk 0:00:47]} 25. Rab1 {[%clk 0:00:16]}  Qa6 {[%clk 0:00:45]} 26. g4 {[%clk 0:00:15]}  Bxa2 {[%clk 0:00:41]} 27. Qxe7+ {[%clk 0:00:12]}  Rf7 {[%clk 0:00:41]} 28. Qe5+ {[%clk 0:00:03]}  Qf6 {[%clk 0:00:41]} 29. Rb2 {[%clk 0:00:02]}  Qxe5 {[%clk 0:00:24]} 30. Rxe5 {[%clk 0:00:03]}  Bc4 {[%clk 0:00:24]} 31. Bf1 {[%clk 0:00:04]}  Bxf1 {[%clk 0:00:23]} 32. Kxf1 {[%clk 0:00:05]}  a5 {[%clk 0:00:21]} 33. Reb5 {[%clk 0:00:04]}  a4 {[%clk 0:00:20]} 34. Rxb7 {[%clk 0:00:03]}  Rxb7 {[%clk 0:00:19]} 35. Rxb7+ {[%clk 0:00:04]}  Kf6 {[%clk 0:00:20]} 36. Rb2 {[%clk 0:00:03]}  a3 {[%clk 0:00:20]} 37. Ra2 {[%clk 0:00:04]}  Ke5 {[%clk 0:00:20]} 38. Ke2 {[%clk 0:00:05]}  Kd4 {[%clk 0:00:21]} 39. Kd2 {[%clk 0:00:05]}  Kc4 {[%clk 0:00:21]} 40. Kc2 {[%clk 0:00:06]}  g5 {[%clk 0:00:20]} 41. Ra1 {[%clk 0:00:05]}  a2 {[%clk 0:00:21]} 42. Kb2 {[%clk 0:00:05]}  Kd3 {[%clk 0:00:21]} 43. Rxa2 {[%clk 0:00:01]}  Rxa2+ {[%clk 0:00:21]} 44. Kxa2 {[%clk 0:00:02]}  Ke2 {[%clk 0:00:22]} 45. Kb3 {[%clk 0:00:03]}  Kxf2 {[%clk 0:00:21]} 46. Kc4 {[%clk 0:00:02]}  Kxf3 {[%clk 0:00:22]} 47. Kd4 {[%clk 0:00:03]}  Kxg4 {[%clk 0:00:22]} 48. Ke4 {[%clk 0:00:04]}  Kh3 {[%clk 0:00:23]} 0-1

[Event "December 5 Early 2023"]
[Site "https://www.chess.com"]
[Date "2023.12.05"]
[Round "6"]
[White "Renjith, Sravan"]
[Black "Bolat, Inayat"]
[Result "1-0"]
[Board "87"]
[TimeControl "180+1"]
[WhiteFideId "4306783"]
[BlackFideId "13733125"]
[WhiteElo "2632"]
[BlackElo "2416"]
[WhiteTeam "NZL"]
[BlackTeam "KAZ"]
[WhiteClock "0:01:47"]
[BlackClock "0:00:00"]

1. Nf3 {[%clk 0:03:00]}  Nf6 {[%clk 0:02:59]} 2. b3 {[%clk 0:03:01]}  g6 {[%clk 0:02:59]} 3. Bb2 {[%clk 0:03:01]}  Bg7 {[%clk 0:02:59]} 4. e3 {[%clk 0:03:02]}  O-O {[%clk 0:02:59]} 5. Be2 {[%clk 0:03:02]}  d6 {[%clk 0:02:57]} 6. O-O {[%clk 0:03:03]}  e5 {[%clk 0:02:57]} 7. d4 {[%clk 0:03:03]}  e4 {[%clk 0:02:56]} 8. Nfd2 {[%clk 0:03:03]}  d5 {[%clk 0:02:57]} 9. c4 {[%clk 0:03:03]}  c6 {[%clk 0:02:57]} 10. Nc3 {[%clk 0:03:04]}  Re8 {[%clk 0:02:51]} 11. Rc1 {[%clk 0:03:04]}  Be6 {[%clk 0:02:49]} 12. cxd5 {[%clk 0:03:03]}  cxd5 {[%clk 0:02:48]} 13. Nb5 {[%clk 0:03:02]}  Na6 {[%clk 0:02:47]} 14. Ba3 {[%clk 0:03:02]}  Qa5 {[%clk 0:02:40]} 15. b4 {[%clk 0:02:44]}  Qb6 {[%clk 0:02:38]} 16. Nb3 {[%clk 0:02:42]}  Bd7 {[%clk 0:02:33]} 17. Nc3 {[%clk 0:02:39]}  Rac8 {[%clk 0:02:24]} 18. b5 {[%clk 0:02:37]}  Nb8 {[%clk 0:01:50]} 19. Na4 {[%clk 0:02:31]}  Qe6 {[%clk 0:01:45]} 20. Nac5 {[%clk 0:02:31]}  Qb6 {[%clk 0:01:36]} 21. Na4 {[%clk 0:02:26]}  Qe6 {[%clk 0:00:52]} 22. Nbc5 {[%clk 0:02:26]}  Qe7 {[%clk 0:00:49]} 23. Qb3 {[%clk 0:02:25]}  Bf8 {[%clk 0:00:48]} 24. Bb4 {[%clk 0:02:20]}  Bf5 {[%clk 0:00:40]} 25. Rfe1 {[%clk 0:02:03]}  h5 {[%clk 0:00:38]} 26. Nd3 {[%clk 0:02:03]}  Qd8 {[%clk 0:00:09]} 27. Rxc8 {[%clk 0:02:01]}  Bxc8 {[%clk 0:00:07]} 28. Ne5 {[%clk 0:02:01]}  Bg7 {[%clk 0:00:05]} 29. Rc1 {[%clk 0:01:58]}  Nbd7 {[%clk 0:00:05]} 30. Bd6 {[%clk 0:01:55]}  Nxe5 {[%clk 0:00:04]} 31. Bxe5 {[%clk 0:01:53]}  b6 {[%clk 0:00:03]} 32. Nc3 {[%clk 0:01:51]}  Bb7 {[%clk 0:00:02]} 33. f3 {[%clk 0:01:50]}  Nd7 {[%clk 0:00:02]} 34. Bxg7 {[%clk 0:01:49]}  Kxg7 {[%clk 0:00:03]} 35. Nxd5 {[%clk 0:01:50]}  exf3 {[%clk 0:00:03]} 36. Bxf3 {[%clk 0:01:49]}  Nf6 {[%clk 0:00:03]} 37. Nxf6 {[%clk 0:01:49]}  Bxf3 {[%clk 0:00:02]} 38. Nxe8+ {[%clk 0:01:49]}  Kf8 {[%clk 0:00:01]} 39. gxf3 {[%clk 0:01:47]}  Qg5+ {[%clk 0:00:00]} 40. Kh1 {[%clk 0:01:47]} 1-0